bitfinex-derivatives/quotes_SOLF0:USTF0_20241218
["timestamp","ask_amount","ask_price","bid_price","bid_amount"]
[1734543669991,2.9396,217.21,217.05,16.11772368]
[1734543670289,1.4548,217.21,217.06,2.92]
[1734543670485,3.757,217.21,217.14,2.3029]
[1734543670683,1.4548,217.21,217.09,16.11772368]
[1734543671283,3.7571,217.21,217.09,16.11772368]
[1734543671880,1.4548,217.21,217.09,16.11772368]
[1734543672481,2.3026,217.18,217.09,18.42112368]
[1734543672690,1.4548,217.21,217.09,18.42112368]
[1734543673284,1.4548,217.21,217.05,16.11772368]
[1734543674091,2.92,217.2,217.05,16.11772368]
[1734543674293,2.3032,217.12,217.05,16.11772368]
[1734543674889,2.3029,217.15,217.08,2.3036]
[1734543675090,8.56864367,217.24,217.09,19.03772368]
[1734543675291,8.56864367,217.24,217.1,2.92]
[1734543675481,8.56864367,217.24,217.14,2.3029]
[1734543676590,8.56864367,217.24,217.1,2.92]
[1734543676989,2.3026,217.18,217.11,2.3032]
[1734543677891,2.3026,217.17,217.12,2.3032]
[1734543678086,2.3026,217.17,217.1,2.92]
[1734543678292,2.3025,217.18,217.1,2.92]
[1734543678591,2.3025,217.18,217.13,2.3031]
[1734543678790,8.56864367,217.24,217.1,2.92]
[1734543678990,8.56864367,217.24,217.12,2.3031]
[1734543679391,2.3023,217.21,217.12,2.3031]
[1734543679594,8.56864367,217.24,217.13,16.11772368]
[1734543679992,2.3024,217.19,217.13,16.11772368]
[1734543680586,8.56864367,217.24,217.1,2.92]
[1734543680791,8.56864367,217.24,217.05,19.03772368]
[1734543681090,8.56864367,217.24,217.06,2.92]
[1734543681289,2.3029,217.15,217.09,2.3035]
[1734543683199,2.92,217.18,217.09,2.3035]
[1734543683392,2.92,217.18,217.06,8.5125238]
[1734543683993,2.3029,217.15,217.06,2.92]
[1734543684195,2.92,217.21,217.09,16.11772368]
[1734543684396,2.3025,217.19,217.12,2.3031]
[1734543684596,2.3025,217.19,217.09,16.11772368]
[1734543684993,2.3025,217.19,217.12,2.3032]
[1734543685194,2.3025,217.19,217.09,16.11772368]
[1734543685195,2.3025,217.18,217.09,16.11772368]
[1734543685589,2.3025,217.18,217.12,2.3031]
[1734543685794,2.92,217.22,217.09,16.11772368]
[1734543685995,2.303,217.14,217.1,2.3034]
[1734543686198,2.92,217.22,217.09,16.11772368]
[1734543686399,2.3029,217.15,217.09,16.11772368]
[1734543686799,2.92,217.22,217.11,2.3032]
[1734543687000,2.3027,217.17,217.11,2.3032]
[1734543687199,2.3027,217.17,217.12,2.3031]
[1734543688492,2.3029,217.15,217.1,2.3033]
[1734543688902,2.3029,217.15,217.09,16.11772368]
[1734543689101,2.3029,217.15,217.11,2.3033]
[1734543689507,2.3028,217.16,217.11,2.3033]
[1734543690301,2.3028,217.16,217.09,16.11772368]
[1734543690507,2.92,217.22,217.09,16.11772368]
[1734543691101,2.3025,217.19,217.14,2.3029]
[1734543692412,8.48262421,217.22,217.09,21.72348187]
[1734543693207,8.48262421,217.22,217.12,2.3031]
[1734543693208,2.3027,217.17,217.12,2.3031]
[1734543693805,2.3027,217.17,217.11,2.3032]
[1734543694011,2.3027,217.17,217.09,21.72348187]
[1734543694206,2.3028,217.16,217.09,21.72348187]
[1734543694408,8.48262421,217.22,217.1,2.3034]
[1734543694603,8.48262421,217.22,217.05,16.11772368]
[1734543694803,8.48262421,217.22,217.08,2.3035]
[1734543695309,8.48262421,217.22,217.05,19.01772368]
[1734543695310,2.3031,217.14,217.05,19.01772368]
[1734543695505,8.48262421,217.22,217.08,2.3035]
[1734543695807,2.3031,217.13,217.08,2.3035]
[1734543696208,5.56262421,217.22,217.11,2.3033]
[1734543696410,5.56262421,217.22,217.09,16.11772368]
[1734543696611,8.46262421,217.22,217.09,16.11772368]
[1734543696911,2.3026,217.18,217.13,2.303]
[1734543697210,8.46262421,217.22,217.13,2.303]
[1734543697407,8.46262421,217.22,217.09,16.11772368]
[1734543697907,2.3026,217.18,217.12,2.3031]
[1734543698210,8.46262421,217.22,217.09,16.11772368]
[1734543698504,2.3025,217.19,217.13,2.303]
[1734543698710,8.46262421,217.22,217.13,2.303]
[1734543699111,2.3024,217.2,217.13,2.303]
[1734543699308,5.56262421,217.22,217.15,2.3028]
[1734543699505,5.56262421,217.22,217.1,2.82]
[1734543699710,2.3024,217.19,217.1,2.82]
[1734543700313,2.3026,217.18,217.1,2.82]
[1734543700508,5.56262421,217.22,217.13,2.3031]
[1734543702012,2.3027,217.17,217.06,5.43175113]
[1734543702315,5.56262421,217.22,217.11,2.3032]
[1734543702910,5.56262421,217.22,217.1,2.3033]
[1734543704116,2.3029,217.15,217.1,2.3033]
[1734543704414,5.56262421,217.22,217.07,2.82]
[1734543704415,2.82,217.18,217.07,2.82]
[1734543705616,2.303,217.14,217.1,2.3034]
[1734543706515,2.82,217.18,217.07,2.82]
[1734543706718,2.82,217.18,217.09,2.3035]
[1734543706915,2.82,217.18,217.04,2.82]
[1734543707214,16.11772368,217.15,216.95,52.74]
[1734543707421,3.076,217.14,216.97,2.82]
[1734543707716,2.82,217.13,217.01,2.3043]
[1734543708218,2.82,217.13,216.97,2.82]
[1734543708410,2.82,217.13,217.02,2.3042]
[1734543709213,2.3039,217.06,217.02,2.3042]
[1734543710415,2.3039,217.06,217.01,2.3043]
[1734543711013,2.82,217.13,216.99,2.3045]
[1734543711221,3.076,217.14,216.93,16.11772368]
[1734543711222,2.82,217.12,216.93,16.11772368]
[1734543711520,2.3038,217.06,216.93,16.11772368]
[1734543711712,2.82,217.06,216.97,2.3047]
[1734543712215,2.3043,217.02,216.97,2.3047]
[1734543713221,5.54033527,217.11,216.97,16.11772368]
[1734543713423,2.82,217.1,216.97,16.11772368]
[1734543713917,5.54033527,217.11,216.97,16.11772368]
[1734543714119,2.82,217.1,216.97,16.11772368]
[1734543714520,2.3039,217.05,216.97,16.11772368]
[1734543715219,2.3039,217.05,216.96,5.54586786]
[1734543715424,2.82,217.1,216.96,5.54586786]
[1734543715618,2.304,217.04,217.0,2.3043]
[1734543717018,2.3042,217.03,216.99,2.3045]
[1734543717226,18.93772368,217.1,216.9,16.11772368]
[1734543717524,2.3045,217.0,216.96,2.3049]
[1734543717918,2.82,217.05,216.95,5.39724798]
[1734543718319,2.82,217.05,216.97,10.01180893]
[1734543719223,2.3043,217.02,216.98,2.3046]
[1734543719428,2.82,217.05,216.97,10.01180893]
[1734543719624,2.82,217.05,216.95,5.39724798]
[1734543719819,10.01180893,217.0,216.83,40.7743969]
[1734543720018,7.2562,216.99,216.84,10.01180893]
[1734543720419,2.3053,216.93,216.89,2.3055]
[1734543720624,2.82,216.94,216.84,10.01180893]
[1734543720825,12.83180893,216.94,216.81,12.83180893]
[1734543721127,12.83180893,216.94,216.79,2.3067]
[1734543721128,10.01180893,216.91,216.79,2.3067]
[1734543721325,1.6035,216.9,216.78,10.01180893]
[1734543721526,2.82,216.89,216.75,12.83180893]
[1734543722022,3.0786,216.88,216.78,5.55268023]
[1734543722623,3.0786,216.88,216.79,2.3067]
[1734543722825,3.0786,216.88,216.78,5.55268023]
[1734543723427,3.0786,216.88,216.78,7.85948023]
[1734543723922,3.0786,216.88,216.76,2.3069]
[1734543723923,2.3064,216.82,216.76,2.3069]
[1734543724129,3.0786,216.88,216.76,2.3069]
[1734543724325,2.3064,216.82,216.76,2.3069]
[1734543724526,2.82,216.84,216.75,5.62068198]
[1734543724920,2.82,216.84,216.74,2.82]
[1734543725119,2.3067,216.79,216.74,2.82]
[1734543725425,2.82,216.84,216.71,16.05275967]
[1734543725620,16.05275967,216.87,216.68,2.82]
[1734543725821,2.82,216.86,216.68,2.82]
[1734543726223,2.307,216.77,216.68,2.82]
[1734543726418,2.82,216.79,216.68,2.82]
[1734543726619,2.82,216.79,216.7,2.3076]
[1734543727430,2.307,216.76,216.7,2.3076]
[1734543728028,2.3074,216.73,216.66,2.82]
[1734543728226,1.5079,216.78,216.62,16.05275967]
[1734543728529,17.56065967,216.78,216.41,52.74]
[1734543728826,16.05275967,216.74,216.54,16.05275967]
[1734543729024,2.3083,216.64,216.55,2.66]
[1734543729228,2.66,216.65,216.52,2.66]
[1734543729526,2.66,216.65,216.5,2.66]
[1734543730129,2.3085,216.62,216.54,5.6192576]
[1734543730925,2.3085,216.62,216.56,2.3091]
[1734543731122,16.05275967,216.7,216.54,5.6192576]
[1734543731321,2.66,216.69,216.54,5.6192576]
[1734543731630,2.66,216.69,216.6,2.3087]
[1734543731829,3.109,216.77,216.54,5.6192576]
[1734543731830,3.109,216.77,216.57,2.66]
[1734543732031,5.50840225,216.74,216.57,18.71275967]
[1734543732231,2.3076,216.71,216.63,2.3083]
[1734543732426,5.50840225,216.74,216.59,0.17882]
[1734543732627,2.66,216.73,216.59,0.17882]
[1734543733034,3.109,216.77,216.6,16.05275967]
[1734543733529,2.3071,216.76,216.69,2.3077]
[1734543733827,2.3071,216.76,216.68,2.66]
[1734543734832,16.05275967,216.84,216.68,2.66]
[1734543735024,4.1565,216.83,216.68,2.66]
[1734543735224,1.4965,216.83,216.68,2.66]
[1734543735624,2.66,216.82,216.68,2.66]
[1734543735824,21.48860383,216.84,216.68,18.71275967]
[1734543735825,5.43584416,216.84,216.68,18.71275967]
[1734543736231,2.3066,216.8,216.71,2.3074]
[1734543736429,21.48860383,216.84,216.69,2.66]
[1734543736828,2.66,216.87,216.69,2.66]
[1734543737030,5.41757377,216.86,216.69,2.66]
[1734543737436,16.05275967,216.84,216.69,2.66]
[1734543737930,2.3066,216.8,216.72,2.3074]
[1734543738138,2.66,216.81,216.68,2.66]
[1734543738438,2.307,216.77,216.7,2.3075]
[1734543738741,1.5209,216.8,216.68,2.66]
[1734543739138,17.57365967,216.8,216.59,52.95882]
[1734543739342,16.05275967,216.76,216.6,2.66]
[1734543739538,16.05275967,216.72,216.6,2.66]
[1734543739739,2.3078,216.69,216.6,4.9686]
[1734543739941,2.66,216.7,216.6,4.9686]
[1734543740135,16.05275967,216.68,216.59,0.17882]
[1734543740331,2.3085,216.62,216.59,0.17882]
[1734543740737,1.5753,216.67,216.59,0.17882]
[1734543741040,2.3086,216.61,216.59,0.17882]
[1734543741940,2.3085,216.63,216.59,0.17882]
[1734543742130,1.5753,216.67,216.59,0.17882]
[1734543742737,1.5753,216.67,216.6,2.3087]
[1734543743235,1.5753,216.67,216.59,0.17882]
[1734543744043,2.3084,216.63,216.59,0.17882]
[1734543744940,1.5753,216.67,216.59,0.17882]
[1734543745338,2.3084,216.63,216.59,0.17882]
[1734543745644,1.5753,216.67,216.59,0.17882]
[1734543747146,2.3084,216.64,216.59,0.17882]
[1734543748944,3.8834,216.67,216.6,2.3087]
[1734543749140,1.5753,216.67,216.59,0.17882]
[1734543749346,1.4476,216.75,216.6,16.05275967]
[1734543749549,3.7547,216.75,216.64,16.05275967]
[1734543749746,1.4476,216.75,216.7,2.3076]
[1734543750043,1.4476,216.75,216.65,2.66]
[1734543750247,2.3076,216.7,216.65,4.9682]
[1734543750552,4.1076,216.75,216.65,2.66]
[1734543751144,20.16035967,216.75,216.59,0.17882]
[1734543752649,20.16035967,216.75,216.61,2.3086]
[1734543753744,28.88868897,216.74,216.54,5.6192576]
[1734543754044,16.05275967,216.71,216.57,2.66]
[1734543754249,4.153,216.7,216.57,2.66]
[1734543754551,2.3084,216.64,216.58,2.3088]
[1734543754749,2.66,216.65,216.48,16.05275967]
[1734543754946,1.6025,216.63,216.49,2.66]
[1734543755154,1.6025,216.63,216.53,5.40695591]
[1734543755446,1.6025,216.63,216.54,2.66]
[1734543755655,2.66,216.66,216.54,2.66]
[1734543755846,1.5453,216.69,216.54,2.66]
[1734543756147,2.308,216.67,216.58,2.3089]
[1734543756352,2.308,216.67,216.59,2.66]
[1734543756845,2.3081,216.66,216.59,2.66]
[1734543757250,1.5453,216.69,216.59,2.66]
[1734543757452,2.308,216.67,216.62,2.3084]
[1734543758548,1.5453,216.69,216.59,2.66]
[1734543758748,2.308,216.67,216.62,2.3084]
[1734543759047,2.308,216.67,216.59,2.66]
[1734543759553,29.03836113,216.71,216.61,16.05275967]
[1734543760049,2.3078,216.68,216.62,2.56]
[1734543760249,2.56,216.74,216.62,2.56]
[1734543760650,2.3076,216.71,216.62,2.56]
[1734543761055,2.3076,216.71,216.66,2.308]
[1734543761261,2.3078,216.69,216.6,2.56]
[1734543761663,2.3078,216.69,216.65,2.3081]
[1734543761868,2.56,216.74,216.6,2.56]
[1734543763162,2.3078,216.69,216.64,2.3083]
[1734543763365,10.04508114,216.72,216.64,2.3083]
[1734543763669,2.3079,216.68,216.6,2.56]
[1734543765670,3.1461,216.71,216.6,2.56]
[1734543765671,2.3077,216.69,216.6,2.56]
[1734543765869,3.1461,216.71,216.6,2.56]
[1734543766369,3.1461,216.71,216.62,10.04508114]
[1734543767073,1.6042,216.71,216.62,10.04508114]
[1734543767370,188.24685317,216.74,216.65,10.04508114]
[1734543767567,188.24685317,216.74,216.66,2.56]
[1734543767962,191.24175317,216.78,216.68,10.04508114]
[1734543768870,188.24685317,216.78,216.71,10.04508114]
[1734543769170,188.24685317,216.78,216.73,2.3072]
[1734543769377,188.24685317,216.78,216.72,2.56]
[1734543770370,188.24685317,216.78,216.74,2.3072]
[1734543770773,188.24685317,216.83,216.72,2.56]
[1734543771469,190.55315317,216.83,216.77,2.3068]
[1734543771669,188.24685317,216.83,216.74,10.04508114]
[1734543771865,188.24685317,216.83,216.82,2.3064]
[1734543772975,2.3052,216.93,216.87,2.3058]
[1734543775166,1.5059,216.94,216.85,2.56]
[1734543775980,1.5059,216.94,216.85,4.8659]
[1734543776175,1.5059,216.94,216.85,2.56]
[1734543776371,2.3056,216.89,216.85,2.56]
[1734543776677,1.5059,216.94,216.85,2.56]
[1734543777379,2.3054,216.92,216.85,2.56]
[1734543777579,1.5059,216.94,216.85,2.56]
[1734543778674,1.5059,216.94,216.84,2.3061]
[1734543779379,2.3054,216.91,216.83,5.4547386]
[1734543779687,2.56,216.92,216.77,16.03648849]
[1734543779885,2.56,216.92,216.78,2.56]
[1734543780174,18.59648849,216.92,216.76,2.56]
[1734543780579,18.59648849,216.92,216.78,2.3068]
[1734543781182,2.3061,216.85,216.78,2.3068]
[1734543781382,3.0278,216.84,216.78,2.3068]
[1734543781778,2.3063,216.83,216.78,2.3068]
[1734543782981,2.3064,216.82,216.77,2.3069]
[1734543783281,3.0278,216.84,216.69,16.03648849]
[1734543783488,2.3071,216.75,216.7,4.8675]
[1734543783685,2.56,216.8,216.67,5.50996112]
[1734543783880,18.59648849,216.8,216.65,2.56]
[1734543784080,2.307,216.76,216.65,4.8681]
[1734543784279,18.59648849,216.8,216.65,2.56]
[1734543785283,2.56,216.8,216.66,5.65799728]
[1734543786683,2.3076,216.71,216.66,5.65799728]
[1734543786885,2.56,216.8,216.66,5.65799728]
[1734543787281,2.3076,216.71,216.66,2.308]
[1734543787489,2.56,216.75,216.63,2.56]
[1734543787691,2.56,216.75,216.61,16.03648849]
[1734543787881,2.3078,216.69,216.63,2.3083]
[1734543788185,2.56,216.75,216.62,8.12868091]
[1734543788386,2.56,216.75,216.65,2.3081]
[1734543788387,2.3076,216.71,216.65,2.3081]
[1734543789283,2.3074,216.72,216.65,2.3081]
[1734543789488,2.56,216.75,216.65,2.3081]
[1734543789686,5.63073984,216.79,216.62,8.12868091]
[1734543789887,2.3071,216.76,216.65,16.03648849]
[1734543790090,188.24685317,216.79,216.65,16.03648849]
[1734543790296,2.3069,216.77,216.65,16.03648849]
[1734543790481,188.24685317,216.79,216.69,16.03648849]
[1734543790790,188.24685317,216.79,216.75,2.3071]
[1734543790979,2.48,216.82,216.7,2.48]
[1734543791180,2.48,216.82,216.72,2.3073]
[1734543791382,2.3069,216.77,216.65,16.03648849]
[1734543791590,2.48,216.82,216.68,2.48]
[1734543791791,0.72248569,216.81,216.68,4.7878]
[1734543791993,2.3068,216.78,216.68,2.48]
[1734543792187,2.48,216.82,216.68,2.48]
[1734543792387,0.72246427,216.81,216.68,2.48]
[1734543792589,2.48,216.82,216.68,2.48]
[1734543792792,2.3068,216.78,216.69,2.3077]
[1734543793089,2.48,216.82,216.69,2.3077]
[1734543793389,2.48,216.82,216.68,2.48]
[1734543793987,2.48,216.82,216.7,2.3076]
[1734543794585,2.3067,216.79,216.7,2.3076]
[1734543794791,2.48,216.82,216.68,12.51782089]
[1734543794982,2.48,216.81,216.68,12.51782089]
[1734543795181,2.3068,216.78,216.68,12.51782089]
[1734543795586,10.03782089,216.8,216.68,2.48]
[1734543795997,10.03782089,216.77,216.66,2.48]
[1734543796194,2.48,216.76,216.66,2.48]
[1734543796388,10.03782089,216.74,216.5,40.83009003]
[1734543796695,10.03782089,216.74,216.6,5.58995678]
[1734543796993,2.308,216.67,216.6,5.58995678]
[1734543797294,2.48,216.7,216.6,5.58995678]
[1734543797794,2.3079,216.68,216.62,2.3084]
[1734543799393,2.48,216.7,216.62,2.3084]
[1734543799991,2.3079,216.68,216.62,2.3084]
[1734543800589,2.48,216.7,216.62,2.3084]
[1734543800794,2.308,216.67,216.62,2.3084]
[1734543801289,2.3082,216.65,216.59,2.3087]
[1734543801496,2.3082,216.65,216.59,4.7887]
[1734543801695,2.3082,216.65,216.59,2.48]
[1734543802094,192.81955317,216.73,216.6,10.03782089]
[1734543802299,192.81955317,216.73,216.63,10.03782089]
[1734543802496,192.81955317,216.73,216.66,2.3081]
[1734543802794,3.0543,216.73,216.66,10.03782089]
[1734543803192,2.3074,216.72,216.68,2.3078]
[1734543803701,2.3074,216.72,216.66,10.03782089]
[1734543803998,3.0543,216.73,216.66,2.308]
[1734543804196,5.5343,216.73,216.63,2.48]
[1734543804391,1.5452,216.72,216.59,5.59738229]
[1734543804591,10.03782089,216.71,216.59,5.59738229]
[1734543804797,10.03782089,216.71,216.46,4.6203]
[1734543804998,2.3084,216.63,216.58,2.3088]
[1734543805201,2.48,216.67,216.53,12.51782089]
[1734543806103,2.48,216.67,216.56,10.03782089]
[1734543806302,2.48,216.71,216.59,10.03782089]
[1734543806608,2.48,216.71,216.6,2.48]
[1734543806798,2.48,216.71,216.62,10.03782089]
[1734543807701,4.7876,216.71,216.66,2.308]
[1734543808003,2.48,216.71,216.66,2.308]
[1734543808501,12.51782089,216.71,216.58,5.67451355]
[1734543808901,2.3079,216.68,216.6,2.3087]
[1734543809101,12.51782089,216.71,216.6,2.3087]
[1734543809499,2.3083,216.65,216.6,2.3087]
[1734543809703,2.3083,216.65,216.58,5.67451355]
[1734543809704,2.3083,216.65,216.61,2.3086]
[1734543810008,12.51782089,216.71,216.59,10.03782089]
[1734543810009,2.3078,216.69,216.59,10.03782089]
[1734543810209,2.48,216.71,216.64,2.3082]
[1734543810705,2.48,216.71,216.59,10.03782089]
[1734543810706,2.3078,216.69,216.59,10.03782089]
[1734543811506,2.48,216.71,216.59,10.03782089]
[1734543811808,32.09266113,216.73,216.62,10.03782089]
[1734543812000,32.09266113,216.73,216.63,2.48]
[1734543812201,5.3616,216.73,216.63,2.48]
[1734543812899,2.3071,216.75,216.65,10.03782089]
[1734543813295,188.24685317,216.76,216.7,2.3076]
[1734543813296,2.3072,216.74,216.7,2.3076]
[1734543814102,10.03782089,216.74,216.64,2.48]
[1734543814304,2.48,216.73,216.61,2.48]
[1734543815601,188.24685317,216.76,216.61,2.48]
[1734543816003,2.3075,216.71,216.67,2.3079]
[1734543816203,2.3075,216.71,216.61,2.48]
[1734543816499,10.03782089,216.74,216.61,2.48]
[1734543816706,2.3078,216.69,216.64,2.3083]
[1734543816901,2.48,216.72,216.61,2.48]
[1734543817903,2.3078,216.69,216.65,2.3081]
[1734543818103,2.48,216.72,216.61,2.48]
[1734543818505,2.3077,216.7,216.66,2.3081]
[1734543818706,2.48,216.72,216.61,2.48]
[1734543819505,188.24685317,216.76,216.61,2.48]
[1734543819699,188.24685317,216.72,216.63,10.03782089]
[1734543820607,190.55435317,216.72,216.68,2.3078]
[1734543821207,2.3077,216.7,216.63,10.03782089]
[1734543821406,188.24685317,216.72,216.62,2.46]
[1734543821805,188.24685317,216.72,216.64,2.3082]
[1734543822306,12.49782089,216.71,216.58,5.67451355]
[1734543822700,2.9941,216.7,216.58,5.67451355]
[1734543822901,2.3085,216.63,216.58,5.67451355]
[1734543823505,188.24685317,216.68,216.57,2.46]
[1734543823708,198.28467406,216.68,216.57,2.46]
[1734543823911,1.5975,216.67,216.57,2.46]
[1734543824111,4.0575,216.67,216.57,2.46]
[1734543824310,4.0575,216.67,216.55,2.46]
[1734543824506,4.0575,216.67,216.55,5.67776211]
[1734543824712,2.3088,216.59,216.54,4.7692]
[1734543824907,2.3088,216.59,216.54,2.46]
[1734543825212,2.3088,216.59,216.53,2.3094]
[1734543825412,2.3088,216.59,216.52,2.46]
[1734543826516,190.70685317,216.62,216.48,10.03782089]
[1734543826716,190.70685317,216.62,216.49,2.46]
[1734543826910,200.74467406,216.62,216.49,5.48835365]
[1734543827417,2.3094,216.54,216.49,7.79815365]
[1734543827605,2.46,216.57,216.49,8.28883365]
[1734543827810,3.0275,216.56,216.49,0.49068]
[1734543828514,2.3095,216.53,216.49,0.49068]
[1734543828911,3.0275,216.56,216.49,0.49068]
[1734543829117,2.3093,216.54,216.49,0.49068]
[1734543829317,3.0275,216.56,216.49,0.49068]
[1734543829709,2.3094,216.54,216.49,2.80048]
[1734543830012,2.3094,216.54,216.49,0.49068]
[1734543830413,2.3095,216.53,216.49,0.49068]
[1734543830717,3.0275,216.56,216.49,0.49068]
[1734543830913,2.3097,216.51,216.49,0.49068]
[1734543831119,3.0275,216.56,216.49,0.49068]
[1734543831620,2.3094,216.54,216.49,2.80048]
[1734543832012,3.0275,216.56,216.51,2.3096]
[1734543832520,3.0275,216.56,216.49,0.49068]
[1734543833019,2.3093,216.55,216.5,2.3098]
[1734543833219,191.27435317,216.56,216.49,0.49068]
[1734543833721,191.27435317,216.56,216.49,2.80058]
[1734543834218,2.3093,216.54,216.49,0.49068]
[1734543834518,201.31217406,216.56,216.49,0.49068]
[1734543835115,193.73435317,216.56,216.49,0.49068]
[1734543835515,193.73435317,216.56,216.51,2.3097]
[1734543835917,193.73435317,216.56,216.49,0.49068]
[1734543835918,191.27435317,216.56,216.49,0.49068]
[1734543836118,3.0275,216.56,216.49,0.49068]
[1734543836819,3.0275,216.56,216.53,2.3094]
[1734543837123,2.46,216.61,216.49,0.49068]
[1734543837317,2.46,216.61,216.56,2.3091]
[1734543837917,2.3088,216.6,216.56,2.3091]
[1734543838113,220.4400143,216.62,216.57,2.309]
[1734543838317,220.4400143,216.62,216.5,10.03782089]
[1734543838621,222.7485143,216.62,216.5,10.03782089]
[1734543839022,217.2852143,216.62,216.53,10.03782089]
[1734543839223,217.2852143,216.62,216.53,12.49782089]
[1734543839524,2.46,216.65,216.53,12.49782089]
[1734543840121,1.5685,216.64,216.53,2.46]
[1734543841120,1.5685,216.64,216.53,12.49782089]
[1734543841520,3.8768,216.64,216.6,2.3086]
[1734543842018,30.58526113,216.67,216.66,2.3081]
[1734543842220,29.03836113,216.67,216.66,2.3081]
[1734543842425,188.24685317,216.73,216.62,10.03782089]
[1734543843219,1.4745,216.74,216.65,2.3081]
[1734543843526,10.03782089,216.73,216.59,2.46]
[1734543844125,1.4745,216.74,216.61,10.03782089]
[1734543844830,1.4745,216.74,216.63,5.61231802]
[1734543845129,2.3076,216.71,216.63,5.61231802]
[1734543845528,2.3074,216.73,216.63,5.61231802]
[1734543845730,1.4745,216.74,216.64,12.49782089]
[1734543846930,1.4745,216.74,216.7,2.3076]
[1734543847228,3.7817,216.74,216.7,2.3076]
[1734543847626,3.7817,216.74,216.69,2.3077]
[1734543848633,1.4745,216.74,216.64,2.46]
[1734543848825,11.51232089,216.74,216.63,5.61231802]
[1734543849128,11.51232089,216.74,216.59,2.42]
[1734543849129,10.03782089,216.71,216.59,2.42]
[1734543849329,2.42,216.7,216.56,2.42]
[1734543849628,1.4745,216.74,216.61,10.03782089]
[1734543849931,1.4745,216.74,216.62,2.42]
[1734543850235,2.3073,216.73,216.62,2.42]
[1734543850534,2.3073,216.73,216.67,2.3079]
[1734543850729,2.3073,216.73,216.62,2.42]
[1734543850928,2.3076,216.71,216.62,2.42]
[1734543851227,1.4745,216.74,216.62,2.42]
[1734543851532,1.4745,216.74,216.64,10.03782089]
[1734543852630,1.4745,216.74,216.69,2.3077]
[1734543852631,3.7817,216.74,216.69,2.3077]
[1734543852831,1.4745,216.74,216.69,2.3077]
[1734543853028,1.4745,216.74,216.61,10.03782089]
[1734543853325,10.03782089,216.73,216.65,2.3081]
[1734543853632,2.3078,216.69,216.64,2.3083]
[1734543853929,10.03782089,216.73,216.64,2.3083]
[1734543854529,2.3078,216.69,216.65,2.3082]
[1734543856731,2.308,216.67,216.63,2.3083]
[1734543858434,190.66685317,216.7,216.59,8.02307166]
[1734543858632,190.66685317,216.7,216.61,10.03782089]
[1734543859136,192.97455317,216.7,216.65,2.3081]
[1734543859433,190.66685317,216.7,216.65,2.3081]
[1734543859632,190.66685317,216.7,216.61,10.03782089]
[1734543860635,2.3078,216.69,216.65,2.3082]
[1734543862333,190.66685317,216.7,216.61,2.3085]
[1734543862635,188.24685317,216.69,216.61,2.3085]
[1734543862934,2.3082,216.65,216.61,2.3085]
[1734543866135,188.24685317,216.69,216.55,0.34393]
[1734543866136,10.03782089,216.67,216.55,0.34393]
[1734543866337,10.03782089,216.64,216.55,0.34393]
[1734543866534,1.4698,216.63,216.55,0.34393]
[1734543867038,10.03782089,216.61,216.49,2.42]
[1734543867237,10.03782089,216.61,216.48,40.84608663]
[1734543867238,2.42,216.6,216.48,40.84608663]
[1734543867438,2.3095,216.53,216.49,2.3099]
[1734543869739,2.3092,216.55,216.5,2.3098]
[1734543869934,188.24685317,216.58,216.48,5.48991683]
[1734543870339,2.3092,216.55,216.51,2.3097]
[1734543870543,188.24685317,216.58,216.48,5.48991683]
[1734543871142,188.24685317,216.58,216.49,2.3098]
[1734543871939,2.3094,216.54,216.49,2.3098]